{"text_format":"3","workbook":"xlsx","n_sheets":1,"sheets":["ใบแสดงรายการผลกำไรและขาดทุน"],"not_rendered":{"defined_names":2},"read":"whole","date_system":"1900"}

{"sheet":"ใบแสดงรายการผลกำไรและขาดทุน","index":0,"n_rows":60,"n_cols":10,"rows_kept":60,"merged":[[9,1,9,9],[16,1,16,9],[24,1,24,9],[38,1,38,9],[43,1,43,9],[56,1,56,9]]}
[null," ใบแสดงกำไรและขาดทุน"]
[]
[{"$nulls":3},"งวดก่อน ","งบประมาณ  ","งวดปัจจุบัน  ",null,"งวดปัจจุบันแบบ % ของการขาย  ","% ที่เปลี่ยนแปลงจากงวดก่อนหน้า  ","% ที่เปลี่ยนแปลงจากงบประมาณ  "]
[null,"รายได้จากการขาย"]
[null,"สินค้า/บริการ 1",null,40,50,45,null,{"$f":"IFERROR(รายได้จากการขาย[[#This Row],[Current Period]]/SUBTOTAL(109,รายได้จากการขาย[Current Period]),0)","v":{"v":1,"d":"100.0%"}},{"$f":"IFERROR(รายได้จากการขาย[[#This Row],[Current Period]]/รายได้จากการขาย[[#This Row],[Prior Period]]-1,0)","v":{"v":0.125,"d":"12.5%"}},{"$f":"IFERROR(รายได้จากการขาย[[#This Row],[Current Period]]/รายได้จากการขาย[[#This Row],[Budget]]-1,0)","v":{"v":-0.09999999999999998,"d":"-10.0%"}}]
[null,"สินค้า/บริการ 2",{"$nulls":5},{"$f":"IFERROR(รายได้จากการขาย[[#This Row],[Current Period]]/SUBTOTAL(109,รายได้จากการขาย[Current Period]),0)","v":0},{"$f":"IFERROR(รายได้จากการขาย[[#This Row],[Current Period]]/รายได้จากการขาย[[#This Row],[Prior Period]]-1,0)","v":0},{"$f":"IFERROR(รายได้จากการขาย[[#This Row],[Current Period]]/รายได้จากการขาย[[#This Row],[Budget]]-1,0)","v":0}]
[null,"สินค้า/บริการ 3",{"$nulls":5},{"$f":"IFERROR(รายได้จากการขาย[[#This Row],[Current Period]]/SUBTOTAL(109,รายได้จากการขาย[Current Period]),0)","v":0},{"$f":"IFERROR(รายได้จากการขาย[[#This Row],[Current Period]]/รายได้จากการขาย[[#This Row],[Prior Period]]-1,0)","v":0},{"$f":"IFERROR(รายได้จากการขาย[[#This Row],[Current Period]]/รายได้จากการขาย[[#This Row],[Budget]]-1,0)","v":0}]
[null,"สินค้า/บริการ 4",{"$nulls":5},{"$f":"IFERROR(รายได้จากการขาย[[#This Row],[Current Period]]/SUBTOTAL(109,รายได้จากการขาย[Current Period]),0)","v":0},{"$f":"IFERROR(รายได้จากการขาย[[#This Row],[Current Period]]/รายได้จากการขาย[[#This Row],[Prior Period]]-1,0)","v":0},{"$f":"IFERROR(รายได้จากการขาย[[#This Row],[Current Period]]/รายได้จากการขาย[[#This Row],[Budget]]-1,0)","v":0}]
[null,"ผลรวม",null,{"$f":"SUBTOTAL(109,รายได้จากการขาย[Prior Period])","v":40},{"$f":"SUBTOTAL(109,รายได้จากการขาย[Budget])","v":50},{"$f":"SUBTOTAL(109,รายได้จากการขาย[Current Period])","v":45},null,{"$f":"IFERROR(รายได้จากการขาย[[#Totals],[Current Period]]/รายได้จากการขาย[[#Totals],[Current Period]],0)","v":{"v":1,"d":"100.0%"}},{"$f":"IFERROR(รายได้จากการขาย[[#Totals],[Current Period]]/รายได้จากการขาย[[#Totals],[Prior Period]]-1,0)","v":{"v":0.125,"d":"12.5%"}},{"$f":"IFERROR(รายได้จากการขาย[[#Totals],[Current Period]]/รายได้จากการขาย[[#Totals],[Budget]]-1,0)","v":{"v":-0.09999999999999998,"d":"-10.0%"}}]
[]
[null,"ต้นทุนการขาย"]
[null,"สินค้า/บริการ 1",null,null,2,3,null,{"$f":"IFERROR(ต้นทุนขาย[[#This Row],[Current Period]]/SUBTOTAL(109,รายได้จากการขาย[Current Period]),0)","v":{"v":0.06666666666666667,"d":"6.7%"}},{"$f":"IFERROR(ต้นทุนขาย[[#This Row],[Current Period]]/ต้นทุนขาย[[#This Row],[Prior Period]]-1,0)","v":0},{"$f":"IFERROR(ต้นทุนขาย[[#This Row],[Current Period]]/ต้นทุนขาย[[#This Row],[Budget]]-1,0)","v":{"v":0.5,"d":"50.0%"}}]
[null,"สินค้า/บริการ 2",null,null,5,3,null,{"$f":"IFERROR(ต้นทุนขาย[[#This Row],[Current Period]]/SUBTOTAL(109,รายได้จากการขาย[Current Period]),0)","v":{"v":0.06666666666666667,"d":"6.7%"}},{"$f":"IFERROR(ต้นทุนขาย[[#This Row],[Current Period]]/ต้นทุนขาย[[#This Row],[Prior Period]]-1,0)","v":0},{"$f":"IFERROR(ต้นทุนขาย[[#This Row],[Current Period]]/ต้นทุนขาย[[#This Row],[Budget]]-1,0)","v":{"v":-0.4,"d":"-40.0%"}}]
[null,"สินค้า/บริการ 3",{"$nulls":3},1,null,{"$f":"IFERROR(ต้นทุนขาย[[#This Row],[Current Period]]/SUBTOTAL(109,รายได้จากการขาย[Current Period]),0)","v":{"v":0.022222222222222223,"d":"2.2%"}},{"$f":"IFERROR(ต้นทุนขาย[[#This Row],[Current Period]]/ต้นทุนขาย[[#This Row],[Prior Period]]-1,0)","v":0},{"$f":"IFERROR(ต้นทุนขาย[[#This Row],[Current Period]]/ต้นทุนขาย[[#This Row],[Budget]]-1,0)","v":0}]
[null,"สินค้า/บริการ 4",{"$nulls":5},{"$f":"IFERROR(ต้นทุนขาย[[#This Row],[Current Period]]/SUBTOTAL(109,รายได้จากการขาย[Current Period]),0)","v":0},{"$f":"IFERROR(ต้นทุนขาย[[#This Row],[Current Period]]/ต้นทุนขาย[[#This Row],[Prior Period]]-1,0)","v":0},{"$f":"IFERROR(ต้นทุนขาย[[#This Row],[Current Period]]/ต้นทุนขาย[[#This Row],[Budget]]-1,0)","v":0}]
[null,"ผลรวม",null,{"$f":"SUBTOTAL(109,ต้นทุนขาย[Prior Period])","v":0},{"$f":"SUBTOTAL(109,ต้นทุนขาย[Budget])","v":7},{"$f":"SUBTOTAL(109,ต้นทุนขาย[Current Period])","v":7},null,{"$f":"IFERROR(ต้นทุนขาย[[#Totals],[Current Period]]/SUBTOTAL(109,รายได้จากการขาย[Current Period]),0)","v":{"v":0.15555555555555556,"d":"15.6%"}},{"$f":"IFERROR(ต้นทุนขาย[[#Totals],[Current Period]]/ต้นทุนขาย[[#Totals],[Prior Period]]-1,0)","v":0},{"$f":"IFERROR(ต้นทุนขาย[[#Totals],[Current Period]]/ต้นทุนขาย[[#Totals],[Budget]]-1,0)","v":0}]
[]
[null,"กำไรขั้นต้น",null,{"$f":"SUM(รายได้จากการขาย[Prior Period])-SUM(ต้นทุนขาย[Prior Period])","v":40},{"$f":"SUM(รายได้จากการขาย[Budget])-SUM(ต้นทุนขาย[Budget])","v":43},{"$f":"SUM(รายได้จากการขาย[Current Period])-SUM(ต้นทุนขาย[Current Period])","v":38},null,{"$f":"IFERROR(F18/SUBTOTAL(109,รายได้จากการขาย[Current Period]),0)","v":{"v":0.8444444444444444,"d":"84.4%"}},{"$f":"IFERROR(F18/D18-1,0)","v":{"v":-0.050000000000000044,"d":"-5.0%"}},{"$f":"IFERROR(F18/E18-1,0)","v":{"v":-0.11627906976744184,"d":"-11.6%"}}]
[]
[null,"ค่าใช้จ่ายในการดำเนินงาน: การขายและการตลาด"]
[null,"การโฆษณา",null,null,22,19,null,{"$f":"IFERROR(การขายและการตลาด[[#This Row],[Current Period]]/SUBTOTAL(109,รายได้จากการขาย[Current Period]),0)","v":{"v":0.4222222222222222,"d":"42.2%"}},{"$f":"IFERROR(การขายและการตลาด[[#This Row],[Current Period]]/การขายและการตลาด[[#This Row],[Prior Period]]-1,0)","v":0},{"$f":"IFERROR(การขายและการตลาด[[#This Row],[Current Period]]/การขายและการตลาด[[#This Row],[Budget]]-1,0)","v":{"v":-0.13636363636363635,"d":"-13.6%"}}]
[null,"การตลาดทางตรง",{"$nulls":5},{"$f":"IFERROR(การขายและการตลาด[[#This Row],[Current Period]]/SUBTOTAL(109,รายได้จากการขาย[Current Period]),0)","v":0},{"$f":"IFERROR(การขายและการตลาด[[#This Row],[Current Period]]/การขายและการตลาด[[#This Row],[Prior Period]]-1,0)","v":0},{"$f":"IFERROR(การขายและการตลาด[[#This Row],[Current Period]]/การขายและการตลาด[[#This Row],[Budget]]-1,0)","v":0}]
[null,"ค่าใช้จ่ายอื่นๆ (ระบุ)",{"$nulls":5},{"$f":"IFERROR(การขายและการตลาด[[#This Row],[Current Period]]/SUBTOTAL(109,รายได้จากการขาย[Current Period]),0)","v":0},{"$f":"IFERROR(การขายและการตลาด[[#This Row],[Current Period]]/การขายและการตลาด[[#This Row],[Prior Period]]-1,0)","v":0},{"$f":"IFERROR(การขายและการตลาด[[#This Row],[Current Period]]/การขายและการตลาด[[#This Row],[Budget]]-1,0)","v":0}]
[null,"ผลรวม",null,{"$f":"SUBTOTAL(109,การขายและการตลาด[Prior Period])","v":0},{"$f":"SUBTOTAL(109,การขายและการตลาด[Budget])","v":22},{"$f":"SUBTOTAL(109,การขายและการตลาด[Current Period])","v":19},null,{"$f":"IFERROR(การขายและการตลาด[[#Totals],[Current Period]]/SUBTOTAL(109,รายได้จากการขาย[Current Period]),0)","v":{"v":0.4222222222222222,"d":"42.2%"}},{"$f":"IFERROR(การขายและการตลาด[[#Totals],[Current Period]]/การขายและการตลาด[[#Totals],[Prior Period]]-1,0)","v":0},{"$f":"IFERROR(การขายและการตลาด[[#Totals],[Current Period]]/การขายและการตลาด[[#Totals],[Budget]]-1,0)","v":{"v":-0.13636363636363635,"d":"-13.6%"}}]
[]
[null,"ค่าใช้จ่ายในการดำเนินงาน: ทั่วไปและการบริหาร"]
[null,"ค่าจ้างและเงินเดือน",null,null,56,51,null,{"$f":"IFERROR(ทั่วไปและการจัดการ[[#This Row],[Current Period]]/SUBTOTAL(109,รายได้จากการขาย[Current Period]),0)","v":{"v":1.1333333333333333,"d":"113.3%"}},{"$f":"IFERROR(ทั่วไปและการจัดการ[[#This Row],[Current Period]]/ทั่วไปและการจัดการ[[#This Row],[Prior Period]]-1,0)","v":0},{"$f":"IFERROR(ทั่วไปและการจัดการ[[#This Row],[Current Period]]/ทั่วไปและการจัดการ[[#This Row],[Budget]]-1,0)","v":{"v":-0.0892857142857143,"d":"-8.9%"}}]
[null,"บริการภายนอก",{"$nulls":5},{"$f":"IFERROR(ทั่วไปและการจัดการ[[#This Row],[Current Period]]/SUBTOTAL(109,รายได้จากการขาย[Current Period]),0)","v":0},{"$f":"IFERROR(ทั่วไปและการจัดการ[[#This Row],[Current Period]]/ทั่วไปและการจัดการ[[#This Row],[Prior Period]]-1,0)","v":0},{"$f":"IFERROR(ทั่วไปและการจัดการ[[#This Row],[Current Period]]/ทั่วไปและการจัดการ[[#This Row],[Budget]]-1,0)","v":0}]
[null,"อุปกรณ์",{"$nulls":5},{"$f":"IFERROR(ทั่วไปและการจัดการ[[#This Row],[Current Period]]/SUBTOTAL(109,รายได้จากการขาย[Current Period]),0)","v":0},{"$f":"IFERROR(ทั่วไปและการจัดการ[[#This Row],[Current Period]]/ทั่วไปและการจัดการ[[#This Row],[Prior Period]]-1,0)","v":0},{"$f":"IFERROR(ทั่วไปและการจัดการ[[#This Row],[Current Period]]/ทั่วไปและการจัดการ[[#This Row],[Budget]]-1,0)","v":0}]
[null,"อาหารและความบันเทิง",{"$nulls":5},{"$f":"IFERROR(ทั่วไปและการจัดการ[[#This Row],[Current Period]]/SUBTOTAL(109,รายได้จากการขาย[Current Period]),0)","v":0},{"$f":"IFERROR(ทั่วไปและการจัดการ[[#This Row],[Current Period]]/ทั่วไปและการจัดการ[[#This Row],[Prior Period]]-1,0)","v":0},{"$f":"IFERROR(ทั่วไปและการจัดการ[[#This Row],[Current Period]]/ทั่วไปและการจัดการ[[#This Row],[Budget]]-1,0)","v":0}]
[null,"ค่าเช่า",{"$nulls":5},{"$f":"IFERROR(ทั่วไปและการจัดการ[[#This Row],[Current Period]]/SUBTOTAL(109,รายได้จากการขาย[Current Period]),0)","v":0},{"$f":"IFERROR(ทั่วไปและการจัดการ[[#This Row],[Current Period]]/ทั่วไปและการจัดการ[[#This Row],[Prior Period]]-1,0)","v":0},{"$f":"IFERROR(ทั่วไปและการจัดการ[[#This Row],[Current Period]]/ทั่วไปและการจัดการ[[#This Row],[Budget]]-1,0)","v":0}]
[null,"โทรศัพท์",{"$nulls":5},{"$f":"IFERROR(ทั่วไปและการจัดการ[[#This Row],[Current Period]]/SUBTOTAL(109,รายได้จากการขาย[Current Period]),0)","v":0},{"$f":"IFERROR(ทั่วไปและการจัดการ[[#This Row],[Current Period]]/ทั่วไปและการจัดการ[[#This Row],[Prior Period]]-1,0)","v":0},{"$f":"IFERROR(ทั่วไปและการจัดการ[[#This Row],[Current Period]]/ทั่วไปและการจัดการ[[#This Row],[Budget]]-1,0)","v":0}]
[null,"อรรถประโยชน์",{"$nulls":5},{"$f":"IFERROR(ทั่วไปและการจัดการ[[#This Row],[Current Period]]/SUBTOTAL(109,รายได้จากการขาย[Current Period]),0)","v":0},{"$f":"IFERROR(ทั่วไปและการจัดการ[[#This Row],[Current Period]]/ทั่วไปและการจัดการ[[#This Row],[Prior Period]]-1,0)","v":0},{"$f":"IFERROR(ทั่วไปและการจัดการ[[#This Row],[Current Period]]/ทั่วไปและการจัดการ[[#This Row],[Budget]]-1,0)","v":0}]
[null,"ค่าเสื่อมราคา",{"$nulls":5},{"$f":"IFERROR(ทั่วไปและการจัดการ[[#This Row],[Current Period]]/SUBTOTAL(109,รายได้จากการขาย[Current Period]),0)","v":0},{"$f":"IFERROR(ทั่วไปและการจัดการ[[#This Row],[Current Period]]/ทั่วไปและการจัดการ[[#This Row],[Prior Period]]-1,0)","v":0},{"$f":"IFERROR(ทั่วไปและการจัดการ[[#This Row],[Current Period]]/ทั่วไปและการจัดการ[[#This Row],[Budget]]-1,0)","v":0}]
[null,"ค่าประกัน",{"$nulls":5},{"$f":"IFERROR(ทั่วไปและการจัดการ[[#This Row],[Current Period]]/SUBTOTAL(109,รายได้จากการขาย[Current Period]),0)","v":0},{"$f":"IFERROR(ทั่วไปและการจัดการ[[#This Row],[Current Period]]/ทั่วไปและการจัดการ[[#This Row],[Prior Period]]-1,0)","v":0},{"$f":"IFERROR(ทั่วไปและการจัดการ[[#This Row],[Current Period]]/ทั่วไปและการจัดการ[[#This Row],[Budget]]-1,0)","v":0}]
[null,"ซ่อมแซมและบำรุงรักษา",{"$nulls":5},{"$f":"IFERROR(ทั่วไปและการจัดการ[[#This Row],[Current Period]]/SUBTOTAL(109,รายได้จากการขาย[Current Period]),0)","v":0},{"$f":"IFERROR(ทั่วไปและการจัดการ[[#This Row],[Current Period]]/ทั่วไปและการจัดการ[[#This Row],[Prior Period]]-1,0)","v":0},{"$f":"IFERROR(ทั่วไปและการจัดการ[[#This Row],[Current Period]]/ทั่วไปและการจัดการ[[#This Row],[Budget]]-1,0)","v":0}]
[null,"ค่าใช้จ่ายอื่นๆ (ระบุ)",{"$nulls":5},{"$f":"IFERROR(ทั่วไปและการจัดการ[[#This Row],[Current Period]]/SUBTOTAL(109,รายได้จากการขาย[Current Period]),0)","v":0},{"$f":"IFERROR(ทั่วไปและการจัดการ[[#This Row],[Current Period]]/ทั่วไปและการจัดการ[[#This Row],[Prior Period]]-1,0)","v":0},{"$f":"IFERROR(ทั่วไปและการจัดการ[[#This Row],[Current Period]]/ทั่วไปและการจัดการ[[#This Row],[Budget]]-1,0)","v":0}]
[null,"ผลรวม",null,{"$f":"SUBTOTAL(109,ทั่วไปและการจัดการ[Prior Period])","v":0},{"$f":"SUBTOTAL(109,ทั่วไปและการจัดการ[Budget])","v":56},{"$f":"SUBTOTAL(109,ทั่วไปและการจัดการ[Current Period])","v":51},null,{"$f":"IFERROR(ทั่วไปและการจัดการ[[#Totals],[Current Period]]/SUBTOTAL(109,รายได้จากการขาย[Current Period]),0)","v":{"v":1.1333333333333333,"d":"113.3%"}},{"$f":"IFERROR(ทั่วไปและการจัดการ[[#Totals],[Current Period]]/ทั่วไปและการจัดการ[[#Totals],[Prior Period]]-1,0)","v":0},{"$f":"IFERROR(ทั่วไปและการจัดการ[[#Totals],[Current Period]]/ทั่วไปและการจัดการ[[#Totals],[Budget]]-1,0)","v":{"v":-0.0892857142857143,"d":"-8.9%"}}]
[]
[null,"ค่าใช้จ่ายในการดำเนินงาน: อื่นๆ"]
[null,"ค่าใช้จ่ายในการดำเนินงานอื่นๆ 1",null,null,10,null,null,{"$f":"IFERROR(ค่าใช้จ่ายจากการดำเนินงานประเภทอื่น[[#This Row],[Current Period]]/SUBTOTAL(109,รายได้จากการขาย[Current Period]),0)","v":0},{"$f":"IFERROR(ค่าใช้จ่ายจากการดำเนินงานประเภทอื่น[[#This Row],[Current Period]]/ค่าใช้จ่ายจากการดำเนินงานประเภทอื่น[[#This Row],[Prior Period]]-1,0)","v":0},{"$f":"IFERROR(ค่าใช้จ่ายจากการดำเนินงานประเภทอื่น[[#This Row],[Current Period]]/ค่าใช้จ่ายจากการดำเนินงานประเภทอื่น[[#This Row],[Budget]]-1,0)","v":{"v":-1,"d":"-100.0%"}}]
[null,"ค่าใช้จ่ายในการดำเนินงานอื่นๆ 2",{"$nulls":5},{"$f":"IFERROR(ค่าใช้จ่ายจากการดำเนินงานประเภทอื่น[[#This Row],[Current Period]]/SUBTOTAL(109,รายได้จากการขาย[Current Period]),0)","v":0},{"$f":"IFERROR(ค่าใช้จ่ายจากการดำเนินงานประเภทอื่น[[#This Row],[Current Period]]/ค่าใช้จ่ายจากการดำเนินงานประเภทอื่น[[#This Row],[Prior Period]]-1,0)","v":0},{"$f":"IFERROR(ค่าใช้จ่ายจากการดำเนินงานประเภทอื่น[[#This Row],[Current Period]]/ค่าใช้จ่ายจากการดำเนินงานประเภทอื่น[[#This Row],[Budget]]-1,0)","v":0}]
[null,"ผลรวม",null,{"$f":"SUBTOTAL(109,ค่าใช้จ่ายจากการดำเนินงานประเภทอื่น[Prior Period])","v":0},{"$f":"SUBTOTAL(109,ค่าใช้จ่ายจากการดำเนินงานประเภทอื่น[Budget])","v":10},{"$f":"SUBTOTAL(109,ค่าใช้จ่ายจากการดำเนินงานประเภทอื่น[Current Period])","v":0},null,{"$f":"IFERROR(ค่าใช้จ่ายจากการดำเนินงานประเภทอื่น[[#Totals],[Current Period]]/SUBTOTAL(109,รายได้จากการขาย[Current Period]),0)","v":0},{"$f":"IFERROR(ค่าใช้จ่ายจากการดำเนินงานประเภทอื่น[[#Totals],[Current Period]]/ค่าใช้จ่ายจากการดำเนินงานประเภทอื่น[[#Totals],[Prior Period]]-1,0)","v":0},{"$f":"IFERROR(ค่าใช้จ่ายจากการดำเนินงานประเภทอื่น[[#Totals],[Current Period]]/ค่าใช้จ่ายจากการดำเนินงานประเภทอื่น[[#Totals],[Budget]]-1,0)","v":{"v":-1,"d":"-100.0%"}}]
[]
[null,"ผลรวมค่าใช้จ่ายในการดำเนินงาน",null,{"$f":"SUM(การขายและการตลาด[Prior Period],ทั่วไปและการจัดการ[Prior Period],ค่าใช้จ่ายจากการดำเนินงานประเภทอื่น[Prior Period])","v":0},{"$f":"SUM(การขายและการตลาด[Budget],ทั่วไปและการจัดการ[Budget],ค่าใช้จ่ายจากการดำเนินงานประเภทอื่น[Budget])","v":88},{"$f":"SUM(การขายและการตลาด[Current Period],ทั่วไปและการจัดการ[Current Period],ค่าใช้จ่ายจากการดำเนินงานประเภทอื่น[Current Period])","v":70},null,{"$f":"IFERROR(F45/SUBTOTAL(109,รายได้จากการขาย[Current Period]),0)","v":{"v":1.5555555555555556,"d":"155.6%"}},{"$f":"IFERROR(F45/D45-1,0)","v":0},{"$f":"IFERROR(F45/E45-1,0)","v":{"v":-0.20454545454545459,"d":"-20.5%"}}]
[]
[null,"รายได้จากการดำเนินงาน",null,{"$f":"D18-D45","v":40},{"$f":"E18-E45","v":-45},{"$f":"F18-F45","v":-32},null,{"$f":"IFERROR(F47/SUBTOTAL(109,รายได้จากการขาย[Current Period]),0)","v":{"v":-0.7111111111111111,"d":"-71.1%"}},{"$f":"IFERROR(IF(D47=F47,0,IF(F47>D47,ABS((F47/D47)-1),IF(AND(F47<D47,D47<0),-((F47/D47)-1),(F47/D47)-1))),0)","v":{"v":-1.8,"d":"-180.0%"}},{"$f":"IFERROR(IF(E47=F47,0,IF(F47>E47,ABS((F47/E47)-1),IF(AND(F47<E47,E47<0),-((F47/E47)-1),(F47/E47)-1))),0)","v":{"v":0.28888888888888886,"d":"28.9%"}}]
[]
[null,"รายได้อื่นๆ",{"$nulls":5},{"$f":"IFERROR(F49/SUBTOTAL(109,รายได้จากการขาย[Current Period]),0)","v":0},{"$f":"IFERROR(F49/D49-1,0)","v":0},{"$f":"IFERROR(F49/E49-1,0)","v":0}]
[]
[null,"ภาษี"]
[null,"ภาษีเงินได้",null,null,32,30,null,{"$f":"IFERROR(ภาษี[[#This Row],[Current Period]]/SUBTOTAL(109,รายได้จากการขาย[Current Period]),0)","v":{"v":0.6666666666666666,"d":"66.7%"}},{"$f":"IFERROR(ภาษี[[#This Row],[Current Period]]/ภาษี[[#This Row],[Prior Period]]-1,0)","v":0},{"$f":"IFERROR(ภาษี[[#This Row],[Current Period]]/ภาษี[[#This Row],[Budget]]-1,0)","v":{"v":-0.0625,"d":"-6.3%"}}]
[null,"ภาษีเงินเดือน",{"$nulls":5},{"$f":"IFERROR(ภาษี[[#This Row],[Current Period]]/SUBTOTAL(109,รายได้จากการขาย[Current Period]),0)","v":0},{"$f":"IFERROR(ภาษี[[#This Row],[Current Period]]/ภาษี[[#This Row],[Prior Period]]-1,0)","v":0},{"$f":"IFERROR(ภาษี[[#This Row],[Current Period]]/ภาษี[[#This Row],[Budget]]-1,0)","v":0}]
[null,"ภาษีโรงเริอน",{"$nulls":5},{"$f":"IFERROR(ภาษี[[#This Row],[Current Period]]/SUBTOTAL(109,รายได้จากการขาย[Current Period]),0)","v":0},{"$f":"IFERROR(ภาษี[[#This Row],[Current Period]]/ภาษี[[#This Row],[Prior Period]]-1,0)","v":0},{"$f":"IFERROR(ภาษี[[#This Row],[Current Period]]/ภาษี[[#This Row],[Budget]]-1,0)","v":0}]
[null,"ภาษีอื่นๆ (ระบุ)",{"$nulls":5},{"$f":"IFERROR(ภาษี[[#This Row],[Current Period]]/SUBTOTAL(109,รายได้จากการขาย[Current Period]),0)","v":0},{"$f":"IFERROR(ภาษี[[#This Row],[Current Period]]/ภาษี[[#This Row],[Prior Period]]-1,0)","v":0},{"$f":"IFERROR(ภาษี[[#This Row],[Current Period]]/ภาษี[[#This Row],[Budget]]-1,0)","v":0}]
[null,"ผลรวม",null,{"$f":"SUBTOTAL(109,ภาษี[Prior Period])","v":0},{"$f":"SUBTOTAL(109,ภาษี[Budget])","v":32},{"$f":"SUBTOTAL(109,ภาษี[Current Period])","v":30},null,{"$f":"IFERROR(ภาษี[[#Totals],[Current Period]]/SUBTOTAL(109,รายได้จากการขาย[Current Period]),0)","v":{"v":0.6666666666666666,"d":"66.7%"}},{"$f":"IFERROR(ภาษี[[#Totals],[Current Period]]/ภาษี[[#Totals],[Prior Period]]-1,0)","v":0},{"$f":"IFERROR(ภาษี[[#Totals],[Current Period]]/ภาษี[[#Totals],[Budget]]-1,0)","v":{"v":-0.0625,"d":"-6.3%"}}]
[]
[null,"กำไรสุทธิ",null,{"$f":"D47+D49-ภาษี[[#Totals],[Prior Period]]","v":40},{"$f":"E47+E49-ภาษี[[#Totals],[Prior Period]]","v":-45},{"$f":"F47+F49-ภาษี[[#Totals],[Prior Period]]","v":-32},null,{"$f":"IFERROR(F58/SUBTOTAL(109,รายได้จากการขาย[Current Period]),0)","v":{"v":-0.7111111111111111,"d":"-71.1%"}},{"$f":"IFERROR(IF(D58=F58,0,IF(F58>D58,ABS((F58/D58)-1),IF(AND(F58<D58,D58<0),-((F58/D58)-1),(F58/D58)-1))),0)","v":{"v":-1.8,"d":"-180.0%"}},{"$f":"IFERROR(IF(E58=F58,0,IF(F58>E58,ABS((F58/E58)-1),IF(AND(F58<E58,E58<0),-((F58/E58)-1),(F58/E58)-1))),0)","v":{"v":0.28888888888888886,"d":"28.9%"}}]
[null,"กำไรขั้นต้น",null,{"$f":"D18/SUM(รายได้จากการขาย[Prior Period])","v":{"v":1,"d":"100.0%"}},{"$f":"E18/SUM(รายได้จากการขาย[Budget])","v":{"v":0.86,"d":"86.0%"}},{"$f":"F18/SUM(รายได้จากการขาย[Current Period])","v":{"v":0.8444444444444444,"d":"84.4%"}}]
[null,"อัตราผลตอบแทนจากการขาย",null,{"$f":"D58/SUM(รายได้จากการขาย[Prior Period])","v":{"v":1,"d":"100.0%"}},{"$f":"E58/SUM(รายได้จากการขาย[Budget])","v":{"v":-0.9,"d":"-90.0%"}},{"$f":"F58/SUM(รายได้จากการขาย[Current Period])","v":{"v":-0.7111111111111111,"d":"-71.1%"}}]